[Event "FIDE World Junior U20-ch Girls 2025"]
[Site "Petrovac"]
[Date "2025.03.03"]
[Round "7.43"]
[White "Djendjinovic, Ines"]
[Black "Ostensson, Julia"]
[Result "1/2-1/2"]
[Annotator "NA"]
[ECO "A45"]
[WhiteElo "1841"]
[BlackElo "1979"]
[PlyCount "58"]
[EventDate "2025.02.23"]
[EventType "swiss"]
[EventCountry "MNE"]
[SourceTitle "playchess.com"]
[Source "ChessBase"]
[SourceQuality "1"]
[TimeControl "40/5400+30:1800+30"]

1. d4 {[%emt 0:00:03]} Nf6 {[%emt 0:00:05]} 2. Bg5 {[%emt 0:00:09]} g6 {[%emt 0:00:13]} 3. Bxf6 exf6 {[%emt 0:00:04]} 4. c4 {[%emt 0:00:09]} d5 {[%emt 0:01:43]} 5. cxd5 Qxd5 {[%emt 0:00:05]} 6. Nc3 {[%emt 0:00:17]} Qd8 {[%emt 0:03:13]} 7. e3 {[%emt 0:00:10]} Bd6 {[%emt 0:04:53]} 8. Bc4 {[%emt 0:00:19]} O-O {[%emt 0:01:14]} 9. Nf3 {[%emt 0:00:14]} Nd7 {[%emt 0:00:41]} 10. O-O {[%emt 0:00:21]} f5 {[%emt 0:09:23]} 11. Rc1 {[%emt 0:00:26]} c6 {[%emt 0:06:47]} 12. a3 {[%emt 0:02:52]} Re8 {[%emt 0:13:33]} 13. d5 {[%emt 0:14:04]} c5 {[%emt 0:24:42]} 14. Re1 {[%emt 0:18:18]} Nf6 {[%emt 0:04:08]} 15. Qc2 {[%emt 0:09:05]} a6 {[%emt 0:00:51]} 16. a4 {[%emt 0:00:33]} Ne4 {[%emt 0:04:20]} 17. Bd3 {[%emt 0:05:21]} Qe7 {[%emt 0:00:46]} 18. a5 {[%emt 0:04:47]} Bd7 {[%emt 0:04:56]} 19. Na4 {[%emt 0:06:51]} Bxa4 {[%emt 0:04:00]} 20. Qxa4 {[%emt 0:00:07]} Rad8 {[%emt 0:03:53]} 21. Bc4 {[%emt 0:03:33]} g5 {[%emt 0:04:00]} 22. g3 {[%emt 0:03:22]} Qf6 {[%emt 0:04:34]} 23. Qc2 {[%emt 0:01:20]} Bc7 {[%emt 0:01:01]} 24. Ra1 {[%emt 0:01:09]} Bd6 {[%emt 0:01:42]} 25. Rac1 {[%emt 0:02:18]} Re7 {[%emt 0:01:11]} 26. b3 {[%emt 0:01:16]} Rde8 {[%emt 0:00:06]} 27. Bd3 {[%emt 0:00:26]} h6 {[%emt 0:00:42]} 28. Nd2 {[%emt 0:02:40]} Nxd2 {[%emt 0:01:00]} 29. Qxd2 {[%emt 0:00:19]} Re5 {[%emt 0:00:37]} 1/2-1/2

[Event "FIDE World Junior U20-ch Girls 2025"]
[Site "Petrovac"]
[Date "2025.03.03"]
[Round "7.44"]
[White "Vujatovic, Irina"]
[Black "Djukic, Katarina"]
[Result "1-0"]
[Annotator "NA COMBH"]
[ECO "B52"]
[WhiteElo "2042"]
[BlackElo "1786"]
[PlyCount "119"]
[EventDate "2025.02.23"]
[EventType "swiss"]
[EventCountry "MNE"]
[SourceTitle "playchess.com"]
[Source "ChessBase"]
[SourceQuality "1"]
[TimeControl "40/5400+30:1800+30"]

1. e4 {[%emt 0:00:02]} c5 {[%emt 0:00:05]} 2. Nf3 {[%emt 0:00:05]} d6 {[%emt 0:00:05]} 3. Bb5+ {[%emt 0:00:04]} Bd7 {[%emt 0:00:04]} 4. Bxd7+ Qxd7 {[%emt 0:00:03]} 5. O-O {[%emt 0:00:17]} Nc6 {[%emt 0:00:04]} 6. c3 {[%emt 0:00:05]} d5 {[%emt 0:00:06]} 7. d3 {[%emt 0:00:04]} e6 {[%emt 0:00:37]} 8. Qe2 {[%emt 0:00:10]} Nge7 {[%emt 0:00:24]} 9. h4 {[%emt 0:00:08]} h5 {[%emt 0:00:12]} 10. Be3 {[%emt 0:02:21]} Ng6 {[%emt 0:00:53]} 11. Na3 {[%emt 0:04:17]} Be7 {[%emt 0:01:11]} 12. g3 {[%emt 0:02:39]} O-O-O {[%emt 0:03:00]} 13. Rfd1 {[%emt 0:04:42]} Kb8 {[%emt 0:16:30]} 14. Nc2 {[%emt 0:10:03]} Qc7 {[%emt 0:14:16]} 15. Ng5 {[%emt 0:05:05]} Bf6 {[%emt 0:13:42]} 16. d4 {[%emt 0:09:07]} cxd4 {[%emt 0:09:51]} 17. Nxd4 {[%emt 0:05:36]} Nxd4 {[%emt 0:00:30]} 18. cxd4 {[%emt 0:00:22]} Qe7 {[%emt 0:03:33]} 19. e5 {[%emt 0:02:32]} Bxg5 {[%emt 0:00:10]} 20. Bxg5 {[%emt 0:00:13]} f6 {[%emt 0:00:10]} 21. Be3 {[%emt 0:00:54]} Qf7 {[%emt 0:02:14]} 22. Rdc1 {[%emt 0:00:51]} Rc8 {[%emt 0:02:47]} 23. Rxc8+ {[%emt 0:00:51]} Kxc8 {[%emt 0:03:29]} 24. Rc1+ {[%emt 0:02:41]} Kb8 {[%emt 0:00:29]} 25. Bd2 {[%emt 0:01:05]} fxe5 {[%emt 0:11:56]} 26. dxe5 {[%emt 0:08:38]} Ne7 {[%emt 0:00:34]} 27. Bb4 {[%emt 0:00:12]} Nc6 {[%emt 0:03:26]} 28. Bd6+ {[%emt 0:00:15]} Ka8 {[%emt 0:00:54]} 29. Qd3 {[%emt 0:00:30]} g5 {[%emt 0:03:57]} 30. hxg5 {[%emt 0:00:41]} h4 {[%emt 0:00:41]} 31. g6 {[%emt 0:00:32]} Qg7 {[%emt 0:00:33]} 32. g4 {[%emt 0:01:47]} Rh6 {[%emt 0:05:36]} 33. Rc2 {[%emt 0:07:34]} Rxg6 {[%emt 0:00:47]} 34. f3 {[%emt 0:00:15]} h3 {[%emt 0:01:57]} 35. b4 {[%emt 0:01:54]} Qg8 {[%emt 0:02:26]} 36. b5 {[%emt 0:00:36]} Nb8 {[%emt 0:00:07]} 37. Kh2 {[%emt 0:00:41]} Rh6 {[%emt 0:00:37]} 38. Qd4 {[%emt 0:00:42]} Rh7 {[%emt 0:00:45]} 39. Qd2 {[%emt 0:03:26]} Qe8 {[%emt 0:00:37]} 40. a4 {[%emt 0:00:20]} Rf7 {[%emt 0:00:32]} 41. f4 {[%emt 0:30:32]} Rg7 {[%emt 0:20:37]} 42. g5 {[%emt 0:00:00]} Rh7 {[%emt 0:05:45]} 43. Qc3 {[%emt 0:00:00]} Qf7 {[%emt 0:03:34]} 44. Rf2 {[%emt 0:00:00]} Rh8 {[%emt 0:00:43]} 45. f5 {[%emt 0:00:00]} exf5 {[%emt 0:01:15]} 46. Qc7 {[%emt 0:00:00]} Qh5 {[%emt 0:00:47]} 47. e6 {[%emt 0:00:00]} Qxg5 {[%emt 0:00:11]} 48. Bg3 {[%emt 0:00:00]} Rg8 {[%emt 0:00:53]} 49. Qf4 {[%emt 0:00:00]} Qg6 {[%emt 0:00:20]} 50. e7 {[%emt 0:00:00]} Qf7 {[%emt 0:00:53]} 51. Re2 {[%emt 0:00:00]} Qg6 {[%emt 0:00:34]} 52. Re5 {[%emt 0:00:00]} Re8 {[%emt 0:00:31]} 53. Qxf5 {[%emt 0:00:00]} Qg7 {[%emt 0:00:33]} 54. Qg5 {[%emt 0:00:00]} Qh7 {[%emt 0:00:22]} 55. Qh5 {[%emt 0:00:00]} Qg8 {[%emt 0:00:37]} 56. Qg5 {[%emt 0:01:16]} Qf7 {[%emt 0:00:19]} 57. Qf4 {[%emt 0:04:07]} Qg7 {[%emt 0:00:38]} 58. Re2 {[%emt 0:06:38]} Nd7 {[%emt 0:00:23]} 59. Qc7 {[%emt 0:01:26]} Nb8 {[%emt 0:01:07] Check Result:3.85} 60. Qxb8+ {[%emt 0:00:54]} 1-0

[Event "FIDE World Junior U20-ch Girls 2025"]
[Site "Petrovac"]
[Date "2025.03.03"]
[Round "7.45"]
[White "Li, Anna Sofie"]
[Black "Karacsonyi, Luca"]
[Result "1-0"]
[Annotator "NA COMBH"]
[ECO "B48"]
[WhiteElo "2016"]
[BlackElo "2026"]
[PlyCount "53"]
[EventDate "2025.02.23"]
[EventType "swiss"]
[EventCountry "MNE"]
[SourceTitle "playchess.com"]
[Source "ChessBase"]
[SourceQuality "1"]
[TimeControl "40/5400+30:1800+30"]

1. e4 {[%emt 0:00:03]} c5 {[%emt 0:00:46]} 2. Nf3 {[%emt 0:00:08]} e6 {[%emt 0:00:21]} 3. d4 {[%emt 0:00:13]} cxd4 4. Nxd4 {[%emt 0:00:09]} Nc6 {[%emt 0:00:30]} 5. Nc3 {[%emt 0:00:14]} Qc7 {[%emt 0:00:09]} 6. Be3 {[%emt 0:00:34]} a6 {[%emt 0:00:14]} 7. a3 {[%emt 0:00:09]} b5 {[%emt 0:00:51]} 8. Nxc6 {[%emt 0:00:54]} Qxc6 {[%emt 0:04:32]} 9. Bd3 {[%emt 0:04:10]} Nf6 {[%emt 0:05:32]} 10. f4 {[%emt 0:02:56]} b4 11. axb4 {[%emt 0:10:24]} Bxb4 {[%emt 0:08:36]} 12. Bd2 {[%emt 0:04:26]} Bxc3 13. Bxc3 {[%emt 0:00:16]} Nxe4 {[%emt 0:08:31]} 14. Bxg7 {[%emt 0:08:15]} Rg8 {[%emt 0:02:59]} 15. Qh5 {[%emt 0:18:44]} Rxg7 {[%emt 0:09:28]} 16. Qe5 {[%emt 0:00:14]} Nf6 {[%emt 0:10:08]} 17. Qxf6 {[%emt 0:00:12]} Rxg2 {[%emt 0:01:13]} 18. O-O-O {[%emt 0:04:36]} Bb7 {[%emt 0:06:18]} 19. f5 {[%emt 0:12:46]} Rf2 {[%emt 0:15:00]} 20. Rhg1 {[%emt 0:02:29]} d5 {[%emt 0:10:27]} 21. Rg8+ {[%emt 0:00:47]} Kd7 {[%emt 0:00:07]} 22. Qxf7+ {[%emt 0:01:02]} Kd6 {[%emt 0:00:06]} 23. Qxe6+ {[%emt 0:00:50]} Kc7 {[%emt 0:04:28]} 24. Rg7+ {[%emt 0:02:48]} Kb8 {[%emt 0:00:14]} 25. Qe3 {[%emt 0:01:17]} d4 {[%emt 0:04:44]} 26. Rxb7+ {[%emt 0:02:39]} Qxb7 {[%emt 0:01:41] Check Result:#24} 27. Qxf2 {[%emt 0:00:08]} 1-0

[Event "FIDE World Junior U20-ch Girls 2025"]
[Site "Petrovac"]
[Date "2025.03.03"]
[Round "7.46"]
[White "Blauhut, Anna"]
[Black "Popova, Kira"]
[Result "1-0"]
[Annotator "NA"]
[ECO "C54"]
[WhiteElo "1837"]
[BlackElo "1534"]
[PlyCount "59"]
[EventDate "2025.02.23"]
[EventType "swiss"]
[EventCountry "MNE"]
[SourceTitle "playchess.com"]
[Source "ChessBase"]
[SourceQuality "1"]
[TimeControl "40/5400+30:1800+30"]

1. e4 {[%emt 0:00:06]} e5 {[%emt 0:00:04]} 2. Nf3 {[%emt 0:00:26]} Nc6 {[%emt 0:00:09]} 3. Bc4 {[%emt 0:00:26]} Bc5 {[%emt 0:00:06]} 4. c3 {[%emt 0:00:41]} Nf6 {[%emt 0:00:20]} 5. d3 {[%emt 0:00:38]} d6 {[%emt 0:00:17]} 6. Bb3 {[%emt 0:00:44]} h6 {[%emt 0:00:36]} 7. Nbd2 {[%emt 0:01:00]} O-O {[%emt 0:00:46]} 8. h3 {[%emt 0:01:18]} Re8 {[%emt 0:01:26]} 9. Nf1 {[%emt 0:02:07]} d5 {[%emt 0:05:03]} 10. Qe2 {[%emt 0:01:51]} dxe4 11. dxe4 {[%emt 0:00:20]} Nh5 {[%emt 0:08:58]} 12. Bxf7+ Kxf7 {[%emt 0:00:13]} 13. Qc4+ {[%emt 0:06:29]} Be6 {[%emt 0:00:21]} 14. Qxc5 {[%emt 0:00:12]} Nf4 15. Bxf4 {[%emt 0:00:09]} exf4 {[%emt 0:01:56]} 16. N1d2 {[%emt 0:02:00]} Bd5 {[%emt 0:11:14]} 17. O-O {[%emt 0:02:12]} Be6 {[%emt 0:01:53]} 18. Rad1 {[%emt 0:04:23]} Qf6 {[%emt 0:01:41]} 19. Qh5+ {[%emt 0:08:01]} Kg8 {[%emt 0:01:17]} 20. e5 {[%emt 0:07:12]} Qe7 {[%emt 0:01:48]} 21. Rfe1 {[%emt 0:01:29]} Bxa2 {[%emt 0:11:27]} 22. b3 {[%emt 0:02:27]} Qe6 {[%emt 0:00:18]} 23. c4 {[%emt 0:04:03]} Nb4 {[%emt 0:01:56]} 24. Nd4 {[%emt 0:03:51]} Qb6 {[%emt 0:00:56]} 25. Ne4 {[%emt 0:01:06]} c5 {[%emt 0:02:07]} 26. Nf6+ {[%emt 0:04:06]} gxf6 {[%emt 0:04:24]} 27. Qg6+ {[%emt 0:00:06]} Kf8 {[%emt 0:02:03]} 28. Qxh6+ {[%emt 0:00:16]} Kf7 {[%emt 0:01:55]} 29. Qh7+ {[%emt 0:00:35]} Kf8 {[%emt 0:01:57]} 30. Nf5 {[%emt 0:00:38]} 1-0